bitfinex/quotes_ETHUSD_20220219
["timestamp","ask_amount","ask_price","bid_price","bid_amount"]
[1645282675516,0.07761334,2737.3,2737.2,1.47200936]
[1645282675714,0.23680802,2737.4,2737.2,1.47200936]
[1645282675917,0.07760852,2737.3,2737.2,1.47200936]
[1645282676163,0.23383592,2737.4,2737.2,1.47200936]
[1645282676364,0.07761063,2737.3,2737.2,1.47200936]
[1645282676568,0.07761437,2737.3,2737.2,1.47200936]
[1645282677167,0.23680802,2737.4,2737.1,0.54019398]
[1645282677370,0.07761437,2737.3,2737.2,1.47789917]
[1645282683658,0.18755505,2737.4,2737.2,1.47789917]
[1645282683659,0.19052716,2737.4,2737.2,1.47789917]
[1645282684160,0.07760336,2737.3,2737.2,1.47789917]
[1645282685167,0.07760336,2737.3,2737.2,1.47695188]
[1645282685366,0.07760336,2737.3,2736.9,0.00204787]
[1645282685367,0.14769518,2737.0,2736.9,0.00204787]
[1645282685669,0.14769518,2737.0,2736.9,7.30954787]
[1645282685864,0.14769518,2737.0,2736.9,7.3075]
[1645282686066,8.5,2736.9,2736.8,4.794e-05]
[1645282686266,17.0,2736.9,2736.8,4.794e-05]
[1645282686466,18.0,2736.9,2736.8,4.794e-05]
[1645282686663,20.65725126,2736.9,2736.8,4.794e-05]
[1645282686864,22.04440091,2736.9,2736.8,4.794e-05]
[1645282687063,22.04440091,2736.9,2735.6,2.88852493]
[1645282687064,20.65725126,2736.9,2735.6,2.88852493]
[1645282687264,0.91414,2736.2,2735.6,2.88852493]
[1645282687516,3.5,2736.1,2735.6,2.88852493]
[1645282687719,3.5,2736.1,2735.6,2.27060333]
[1645282687914,0.69784506,2736.0,2735.3,3.17968567]
[1645282688113,3.5,2736.1,2735.3,2.48408234]
[1645282688114,4.19784506,2735.9,2735.3,2.48408234]
[1645282688313,4.19784506,2735.9,2734.9,3.43724672]
[1645282688314,3.5,2735.9,2734.9,2.5148]
[1645282688512,3.5,2735.9,2735.0,0.00234096]
[1645282689113,3.5,2735.9,2735.0,0.56462135]
[1645282689613,3.5,2735.9,2735.3,0.00204906]
[1645282690113,0.91435,2735.8,2735.3,0.00204906]
[1645282690323,3.5,2735.7,2735.3,0.00204906]
[1645282690711,1.0,2735.6,2735.0,0.00234096]
[1645282690912,0.61627424,2735.2,2734.4,0.00234096]
[1645282691163,3.5,2735.1,2734.4,0.00234096]
[1645282691562,5.0,2735.0,2734.4,0.00234096]
[1645282691764,3.5,2734.9,2734.4,0.00234096]
[1645282691964,3.5,2734.9,2733.7,0.69560333]
[1645282691965,5.91477,2734.8,2733.9,0.00234096]
[1645282692164,0.25882085,2734.2,2733.9,0.00234096]
[1645282692362,0.25882085,2734.2,2733.7,2.5797]
[1645282692363,0.9149,2734.1,2733.7,2.58204096]
[1645282693161,0.91488,2734.1,2733.7,2.58204096]
[1645282693363,3.5,2734.2,2733.7,2.58204096]
[1645282693562,0.2882,2734.3,2733.8,0.00204522]
[1645282693762,3.5,2734.4,2733.8,0.00438618]
[1645282694163,3.5,2734.4,2733.8,0.00234096]
[1645282694562,3.5,2734.4,2734.0,0.00204507]
[1645282695011,5.32955,2734.4,2734.0,0.00204507]
[1645282695412,5.32955,2734.4,2733.8,0.00234096]
[1645282695616,5.32955,2734.4,2734.1,0.0022034]
[1645282696310,1.0,2734.3,2734.1,0.0022034]
[1645282696509,3.5,2734.2,2734.1,0.0022034]
[1645282696710,3.5,2734.2,2733.8,0.00234096]
[1645282696910,4.4148,2734.2,2734.1,0.00220336]
[1645282697110,0.9148,2734.2,2734.1,0.00220336]
[1645282697310,4.41482,2734.4,2734.1,0.00220336]
[1645282697311,3.5,2734.4,2734.1,0.00220336]
[1645282697510,1.52617015,2734.6,2734.1,0.00220336]
[1645282697511,3.5,2734.6,2734.1,0.00220336]
[1645282697713,0.10891521,2734.4,2734.1,0.00220336]
[1645282697915,0.10891521,2734.4,2734.0,0.03780518]
[1645282698118,0.10891521,2734.4,2734.1,0.00220336]
[1645282698513,6.4544,2735.3,2734.1,0.00220336]
[1645282698514,3.5,2735.3,2734.1,0.00220336]
[1645282698768,1.81212447,2735.4,2734.4,0.67542809]
[1645282698968,0.68502447,2735.4,2734.5,0.00234096]
[1645282699266,4.18502447,2735.4,2734.6,0.00200498]
[1645282699866,0.91443,2735.3,2734.6,0.00200498]
[1645282700066,3.5,2735.2,2734.6,0.00200498]
[1645282700268,3.5,2735.2,2734.3,0.00234096]
[1645282700466,3.5,2735.2,2734.8,0.0020048]
[1645282700675,1.0,2735.1,2734.8,0.0020048]
[1645282701069,3.5,2735.2,2734.8,0.0020048]
[1645282701468,3.5,2735.2,2734.0,0.54588669]
[1645282701668,3.5,2735.2,2734.9,0.00200476]
[1645282702514,3.5,2735.2,2734.1,0.00234096]
[1645282702907,3.5,2735.2,2734.9,0.00204928]
[1645282703210,0.97944714,2735.3,2734.9,0.00204928]
[1645282703408,3.5,2735.2,2734.9,0.00204928]
[1645282703808,3.5,2735.2,2734.3,0.05085409]
[1645282703809,0.91452,2735.1,2734.3,0.05085409]
[1645282704007,0.91452,2735.1,2734.9,0.00204928]
[1645282704808,3.5,2735.2,2734.9,0.00204928]
[1645282704809,1.06501714,2735.3,2734.9,0.00204928]
[1645282705114,1.06501714,2735.3,2734.3,0.57785409]
[1645282705115,0.06501714,2735.3,2734.3,0.57785409]
[1645282705310,0.06501714,2735.3,2734.9,0.00204931]
[1645282706174,0.61238353,2735.3,2734.4,0.00234096]
[1645282706373,0.61238353,2735.3,2735.0,0.00203922]
[1645282706876,0.06501714,2735.3,2735.0,0.00203922]
[1645282707480,0.06501714,2735.3,2734.5,0.08611616]
[1645282707676,0.06501714,2735.3,2735.0,0.00203918]
[1645282707975,0.70855847,2735.2,2735.1,0.05826524]
[1645282708175,0.70855847,2735.2,2735.1,0.05243872]
[1645282710713,4.20855847,2735.2,2735.1,0.05243872]
[1645282710916,5.20855847,2735.2,2735.1,0.05243872]
[1645282713113,5.23511258,2735.2,2735.0,0.00204143]
[1645282713312,4.5,2735.1,2734.0,0.00234096]
[1645282713519,5.41451,2735.1,2734.0,0.00234096]
[1645282713760,5.41451,2735.1,2735.0,0.00204093]
[1645282714659,5.41451,2735.1,2734.0,0.00234096]
[1645282714860,5.41451,2735.1,2734.9,0.002041]
[1645282715461,1.91451,2735.1,2734.9,0.002041]
[1645282715663,5.41451,2735.1,2734.9,0.002041]
[1645282715866,5.41451,2735.1,2734.0,0.00234096]
[1645282716067,5.41451,2735.1,2734.9,0.00204104]
[1645282716263,1.91451,2735.1,2734.9,0.00204104]
[1645282716465,5.41451,2735.1,2734.9,0.00204104]
[1645282717066,5.41451,2735.1,2734.0,0.00234096]
[1645282717265,5.41451,2735.1,2734.9,0.00204115]
[1645282717708,1.91451,2735.1,2734.9,0.00204115]
[1645282717910,5.41451,2735.1,2734.9,0.00204115]
[1645282718108,3.5,2735.0,2734.9,0.00204115]
[1645282718306,3.5,2735.0,2734.0,0.00234096]
[1645282718512,3.53448236,2735.0,2734.9,0.00204115]
[1645282718712,0.03448236,2735.0,2734.9,0.00204115]
[1645282719511,3.53448236,2735.0,2734.0,0.00234096]
[1645282719712,3.53448236,2735.0,2734.8,0.00204119]
[1645282719910,0.03448236,2735.0,2734.8,0.00204119]
[1645282720613,0.03448236,2735.0,2734.0,0.00234096]
[1645282720614,0.94910236,2735.0,2734.0,0.00234096]
[1645282720815,0.19857258,2734.2,2734.0,0.00234096]
[1645282721016,0.19857258,2734.2,2733.8,0.1827]
[1645282721017,0.19857258,2734.2,2733.8,0.00234096]
[1645282722062,0.19857258,2734.2,2733.9,0.00204187]
[1645282722262,1.11339258,2734.2,2733.9,0.00204187]
[1645282722664,4.61339258,2734.2,2733.9,0.00204187]
[1645282723062,4.61339258,2734.2,2733.8,0.00234096]
[1645282723268,4.61339258,2734.2,2733.9,0.00204184]
[1645282723466,5.52827258,2734.2,2733.9,0.00204184]
[1645282723870,1.0,2734.1,2733.9,0.00204184]
[1645282724065,8.5,2734.0,2733.9,0.00204184]
[1645282724270,9.5,2734.0,2733.8,0.00234096]
[1645282724469,4.5,2733.9,2733.7,0.00234096]
[1645282724670,9.4152002,2733.7,2732.9,2.4177]
[1645282724919,0.91521,2733.4,2732.9,2.4177]
[1645282725111,0.51478155,2733.1,2733.0,0.00230915]
[1645282725412,5.3304,2733.5,2732.9,2.4177]
[1645282725610,5.3304,2733.5,2732.9,2.42000915]
[1645282725611,1.8304,2733.5,2732.9,2.42000915]
[1645282725809,1.8304,2733.5,2733.0,1.45964483]
[1645282726011,0.91499,2733.7,2733.1,0.00230915]
[1645282726215,1.1829,2733.9,2733.1,0.00230915]
[1645282726415,1.66468266,2733.8,2733.1,0.00230915]
[1645282726614,0.66468266,2733.8,2733.1,0.00230915]
[1645282727216,1.0,2734.0,2733.1,0.00230915]
[1645282728317,1.0,2734.0,2733.4,0.00249671]
[1645282728516,1.61190991,2734.0,2733.4,0.00249671]
[1645282728764,1.0,2734.0,2733.4,0.00249671]
[1645282728969,1.0,2734.0,2733.3,0.00230915]
[1645282729168,0.02629269,2734.1,2733.2,0.3]
[1645282729370,0.03924515,2734.2,2734.1,0.02370847]
[1645282731764,0.03924515,2734.2,2734.1,1.48874413]
[1645282732706,1.55721135,2734.6,2734.1,1.48874413]
[1645282732908,0.07768717,2734.5,2734.1,0.02601762]
[1645282733308,0.07768717,2734.5,2734.1,0.02370847]
[1645282734116,0.07768717,2734.5,2734.2,1.46654715]
[1645282734309,3.57768717,2734.5,2734.1,0.02370847]
[1645282734510,0.99247717,2734.4,2734.1,0.02370847]
[1645282734711,3.57768717,2734.3,2734.1,0.02370847]
[1645282734913,0.07768717,2734.2,2734.1,0.02370847]
[1645282735312,1.07768717,2734.2,2734.1,0.02370847]
[1645282735612,4.57768717,2734.2,2734.1,0.02370847]
[1645282736460,3.57768717,2734.2,2734.1,0.02370847]
[1645282736673,4.57768717,2734.2,2734.1,0.02370847]
[1645282736861,3.57768717,2734.2,2734.1,0.02370847]
[1645282737063,4.57768717,2734.2,2734.1,0.02370847]
[1645282737564,1.07768717,2734.2,2734.1,0.02370847]
[1645282737962,3.57768717,2734.2,2734.1,0.02370847]
[1645282738362,4.57768717,2734.2,2734.1,0.02370847]
[1645282738762,0.07768717,2734.2,2734.1,0.02370847]
[1645282738964,0.07768717,2734.3,2734.1,0.02370847]
[1645282739166,0.07768717,2734.2,2734.1,0.02370847]
[1645282739362,7.70239,2734.4,2734.1,0.02370847]
[1645282739363,0.07768717,2734.3,2734.1,0.02370847]
[1645282739666,7.70239,2734.4,2734.1,0.02370847]
[1645282739667,0.07768717,2734.2,2734.1,0.02370847]
[1645282740312,0.07768717,2734.3,2734.1,0.02370847]
[1645282740513,0.07768717,2734.2,2734.1,0.02370847]
[1645282740713,8.61722,2734.4,2734.1,0.02370847]
[1645282740714,0.07768717,2734.3,2734.1,0.02370847]
[1645282742515,0.05783049,2734.2,2734.1,0.02370847]
[1645282742715,0.13551766,2734.2,2734.1,0.02370847]
[1645282749812,1.05044766,2734.2,2734.1,0.02370847]
[1645282750014,4.55044766,2734.2,2734.1,0.02370847]
[1645282751466,10.55044766,2734.2,2734.1,0.02251259]
[1645282752466,12.01548755,2734.2,2734.1,0.06923407]
[1645282753366,1.83027,2734.0,2733.8,0.00249639]
[1645282753569,10.33027,2733.9,2733.8,0.00249639]
[1645282753767,11.40795717,2733.9,2733.8,0.00249639]
[1645282753971,11.40795717,2733.9,2733.8,9.639e-05]
[1645282753972,12.81550223,2733.9,2733.8,9.639e-05]
[1645282754173,8.5,2733.8,2733.0,1.46868493]
[1645282754370,0.91525,2733.4,2733.1,0.00230915]
[1645282754573,0.91525,2733.4,2732.4,0.13819997]
[1645282754574,0.07083278,2733.2,2732.5,1.47063166]
[1645282754769,0.07083278,2733.2,2732.6,0.00230915]
[1645282754770,0.07768717,2733.1,2732.6,0.00230915]
[1645282755013,0.07083278,2733.2,2732.6,0.00230915]
[1645282755214,1.1397,2733.7,2732.6,1.47063166]
[1645282755410,1.1397,2733.7,2732.7,1.47063166]
[1645282755411,0.07770957,2733.6,2732.7,1.47063166]
[1645282755613,0.07770957,2733.6,2732.8,1.47063166]
[1645282755811,0.07770957,2733.6,2732.9,1.46832251]
[1645282756016,0.07770957,2733.6,2733.0,1.47063166]
[1645282756212,1.66223066,2733.6,2733.1,1.46832251]
[1645282756411,0.07770957,2733.5,2733.2,1.46832251]
[1645282756610,0.07770957,2733.5,2733.3,1.46832251]
[1645282756812,0.07770957,2733.5,2733.4,1.46832251]
[1645282757013,0.07770957,2733.5,2732.8,1.47063166]
[1645282757214,0.07770957,2733.5,2732.9,1.46781404]
[1645282757412,0.07770957,2733.5,2733.0,1.47012319]
[1645282757614,0.07770957,2733.5,2733.1,1.46781404]
[1645282757812,0.07770957,2733.5,2733.2,1.46781404]
[1645282758011,0.07770957,2733.5,2733.3,1.46781404]
[1645282758215,0.07770957,2733.5,2733.1,0.00249074]
[1645282758867,0.07770957,2733.5,2733.1,1.47070474]
[1645282759066,0.07770957,2733.5,2733.1,1.468214]
[1645282759267,0.07770957,2733.5,2733.2,0.0024907]
[1645282759467,0.07770957,2733.5,2733.2,1.4707047]
[1645282759666,0.07770957,2733.5,2733.3,1.468214]
[1645282759871,0.07770957,2733.5,2733.2,0.00479985]
[1645282760072,0.07770957,2733.5,2733.3,1.46818456]
[1645282760368,0.07770957,2733.5,2732.8,0.00230915]
[1645282760369,1.83023,2733.4,2732.8,0.00230915]
[1645282760568,1.83023,2733.4,2733.2,0.00249065]
[1645282761468,1.83023,2733.4,2733.0,0.00230915]
[1645282761669,1.83023,2733.4,2733.2,0.0024907]
[1645282762269,1.83023,2733.4,2733.2,1.47070312]
[1645282762514,1.83023,2733.4,2733.3,0.03941152]
[1645282762515,0.93958598,2733.4,2733.3,0.03941152]
[1645282762711,2.01729972,2733.4,2733.3,0.03941152]
[1645282765017,1.10216972,2733.4,2733.3,0.03941152]
[1645282765212,1.10216972,2733.4,2733.3,1.50903885]
[1645282765416,0.10216972,2733.4,2733.3,1.50903885]
[1645282768371,0.02445598,2733.4,2733.3,1.50903885]
[1645282769172,0.1021647,2733.4,2733.3,1.50903885]
[1645282769921,0.1021647,2733.4,2733.3,0.03941152]
[1645282770312,0.1021647,2733.4,2733.3,1.50930165]
[1645282772412,0.09238231,2733.4,2733.3,1.46989013]
[1645282773023,0.09238231,2733.4,2733.2,0.00249065]
[1645282773216,0.01467359,2733.4,2733.2,0.00249065]
[1645282773417,0.07771298,2733.3,2733.2,1.46989013]
[1645282773668,0.07771298,2733.3,2733.1,0.00230915]
[1645282773877,0.07771298,2733.3,2733.2,1.47238083]
[1645282774670,0.07771298,2733.3,2733.2,1.46989013]
[1645282775173,0.07771298,2733.3,2733.1,0.00249074]
[1645282775571,0.01467359,2733.4,2733.3,0.14777803]
[1645282775769,0.09238421,2733.4,2733.3,0.14777803]
[1645282775969,0.09238421,2733.4,2733.3,1.61766816]
[1645282776172,0.09238421,2733.4,2733.3,0.14777803]
[1645282776769,0.09238421,2733.4,2733.3,0.14650961]
[1645282779417,3.59238421,2733.4,2733.3,0.14650961]
[1645282779917,4.59238421,2733.4,2733.3,0.14650961]
[1645282780516,1.09238421,2733.4,2733.3,0.14650961]
[1645282780715,6.20050204,2733.4,2733.3,0.14650961]
[1645282782669,6.30515515,2733.4,2733.3,0.18608241]
[1645282783074,5.30515515,2733.4,2733.3,0.18608241]
[1645282783273,2.11224732,2733.4,2733.3,0.18608241]
[1645282783871,5.61224732,2733.4,2733.3,0.18608241]
[1645282784073,10.61224732,2733.4,2733.3,0.18608241]
[1645282784273,2.80515515,2733.4,2733.3,0.18608241]
[1645282784923,7.11224732,2733.4,2733.3,0.18608241]
[1645282785121,2.11224732,2733.4,2733.3,0.18608241]
[1645282785527,7.11224732,2733.4,2733.3,0.18608241]
[1645282785920,2.11224732,2733.4,2733.3,0.18608241]
[1645282786121,7.11224732,2733.4,2733.3,0.18608241]
[1645282786321,7.80515515,2733.4,2733.3,0.18608241]
[1645282786722,2.80515515,2733.4,2733.3,0.18608241]
[1645282787123,7.80515515,2733.4,2733.3,0.18608241]
[1645282787322,7.80515515,2733.4,2733.3,0.04343363]
[1645282787523,7.11224732,2733.4,2733.3,0.04343363]
[1645282787721,7.80557531,2733.4,2733.3,0.04343363]
[1645282787922,7.11224732,2733.4,2733.3,0.04343363]
[1645282788127,7.8058062,2733.4,2733.3,0.04343363]
[1645282788321,7.11224732,2733.4,2733.3,0.04343363]
[1645282788667,2.41224732,2733.4,2733.3,0.04343363]
[1645282788868,2.11224732,2733.4,2733.3,0.04343363]
[1645282789166,2.41224732,2733.4,2733.3,0.04343363]
[1645282789366,2.41224732,2733.4,2733.3,3.363e-05]
[1645282789367,20.47979188,2733.4,2733.3,3.363e-05]
[1645282789567,21.29482747,2733.4,2733.3,3.363e-05]
[1645282789768,12.32882747,2733.4,2733.3,3.363e-05]
[1645282789971,11.69669188,2733.4,2733.3,3.363e-05]
[1645282790366,14.09078873,2733.4,2733.3,3.363e-05]
[1645282790570,14.13067452,2733.4,2733.3,3.363e-05]
[1645282790773,0.91554,2733.1,2731.7,2.65410915]
[1645282790967,1.8310951,2732.8,2731.8,0.00230915]
[1645282791166,0.527,2732.7,2731.8,0.00230915]
[1645282791373,5.0,2732.5,2731.8,0.00230915]
[1645282791567,5.0,2732.5,2731.6,0.00230915]
[1645282791568,0.527,2732.4,2731.6,0.00230915]
[1645282791766,0.91572,2731.9,2731.2,0.18520915]
[1645282791968,0.91572,2731.9,2731.4,0.00230915]
[1645282792421,0.91572,2731.9,2731.2,0.00230915]
[1645282793222,0.91573,2731.8,2731.2,0.00230915]
[1645282793621,2.74719,2731.8,2731.1,7.44230915]
[1645282793822,2.74719,2731.8,2731.2,0.00229963]
[1645282794624,1.83184,2731.6,2731.0,0.00229963]
[1645282794823,0.91593,2731.5,2730.8,0.00229963]
[1645282795424,0.13594867,2731.4,2731.2,0.00248629]
[1645282795823,1.05188867,2731.4,2731.2,0.00248629]
[1645282796031,0.91595,2731.3,2731.2,0.00248629]
[1645282796272,5.91595,2731.3,2730.8,0.00229963]
[1645282796471,5.91595,2731.3,2730.1,0.00229963]
[1645282796472,0.91618,2731.0,2730.1,0.00229963]
[1645282796672,4.027,2730.9,2730.1,0.00229963]
[1645282796871,1.44319,2730.8,2730.1,0.00229963]
[1645282797171,0.51403808,2730.6,2730.1,0.00229963]
[1645282797375,4.41624,2730.5,2730.1,0.00229963]
[1645282797976,6.41627,2730.4,2729.9,2.52229963]
[1645282798171,3.5,2730.5,2730.0,1.46389245]
[1645282798371,3.5,2730.5,2730.1,0.00227759]
[1645282798577,0.9163,2730.3,2730.1,0.00227759]
[1645282798776,1.83255,2730.3,2729.9,2.52457722]
[1645282799072,3.66507,2730.3,2729.9,2.52457722]
[1645282799274,4.5813934,2730.3,2729.9,2.52457722]
[1645282799474,4.57991244,2730.3,2729.9,2.52457722]
[1645282799675,3.66507,2730.3,2729.9,2.52457722]
[1645282799935,0.91626,2730.2,2729.9,2.52457722]
[1645282800124,0.91626,2730.2,2730.0,0.00247516]
[1645282800326,0.527,2730.8,2729.9,2.52457722]
[1645282800327,5.4622,2731.1,2729.9,2.51950854]
[1645282800525,5.4622,2731.1,2730.0,1.42512587]
[1645282800723,5.4622,2731.1,2730.1,0.00227759]
[1645282800724,1.9622,2731.1,2730.1,0.00227759]
[1645282801324,1.9622,2731.1,2730.4,0.54837027]
[1645282801525,3.6831,2731.3,2730.5,0.00227759]
[1645282801926,2.03021439,2731.4,2730.5,0.00227759]
[1645282802325,2.3567,2731.4,2730.5,0.00227759]
[1645282802629,1.1738,2731.4,2730.5,3.58839375]
[1645282802828,0.11387566,2731.0,2730.6,0.00227759]
[1645282803330,0.11387566,2731.0,2730.7,0.08611616]
[1645282803526,0.11387566,2731.0,2730.9,0.66483296]
[1645282803780,1.62331302,2731.9,2730.9,0.66483296]
[1645282804075,0.62331302,2731.9,2731.0,2.55577759]
[1645282804271,0.11387566,2731.4,2731.1,0.00227759]
[1645282804669,0.62331302,2731.9,2731.1,0.00227759]
[1645282804969,0.91567,2732.0,2731.1,0.00227759]
[1645282805770,0.11387566,2731.6,2731.1,0.00227759]
[1645282805972,1.0,2732.1,2731.1,0.08839375]
[1645282806269,0.1829,2732.5,2731.1,0.08839375]
[1645282806671,0.1829,2732.8,2731.2,0.527]
[1645282806870,1.202,2732.9,2731.6,0.9153285]
[1645282807073,0.1070953,2732.8,2731.7,0.00227759]
[1645282807270,0.11387566,2732.3,2732.0,0.62225168]
[1645282807532,1.202,2732.9,2732.1,0.00227759]
[1645282807830,0.10711623,2732.8,2732.1,0.00227759]
[1645282808027,0.01248924,2733.0,2732.2,0.527]
[1645282808228,0.01248924,2733.0,2732.3,0.00227759]
[1645282808429,1.9059,2733.6,2732.3,0.00227759]
[1645282808626,0.01249078,2733.0,2732.3,0.00227759]
[1645282808825,0.01249078,2733.0,2732.7,0.6187597]
[1645282809029,0.01249078,2733.0,2732.3,0.00227759]
[1645282809228,0.63851588,2732.8,2732.3,0.00227759]
[1645282809428,0.63851588,2732.6,2732.3,0.00227759]
[1645282809926,0.63851588,2732.6,2732.2,0.67581564]
[1645282810128,0.63851588,2732.6,2732.2,0.67809323]
[1645282810428,0.11387566,2732.4,2732.2,0.67809323]
[1645282810634,0.63851588,2732.6,2732.2,0.67809323]
[1645282811473,0.63851588,2732.6,2732.2,0.65978291]
[1645282811677,0.63851588,2732.6,2732.2,4.15978291]
[1645282811874,0.11387566,2732.4,2732.2,4.15978291]
[1645282812074,0.63851588,2732.6,2732.2,0.65978291]
[1645282813173,0.63851588,2732.6,2732.2,0.60978291]
[1645282813372,0.11387566,2732.4,2732.2,0.60978291]
[1645282813573,0.63851588,2732.6,2732.2,0.60750532]
[1645282813874,0.63851588,2732.6,2732.2,0.60978291]
[1645282814276,1.29743306,2733.2,2732.2,0.60978291]
[1645282814474,0.63851588,2732.4,2732.3,0.00227759]
[1645282814673,0.63851588,2732.4,2732.2,0.60750532]
[1645282814927,0.11387566,2732.3,2732.2,0.60750532]
[1645282818130,0.11387566,2732.3,2731.8,0.00227759]
[1645282818329,0.63851588,2732.4,2731.8,0.00227759]
[1645282819177,0.63851588,2732.4,2732.0,0.52175972]
[1645282819378,0.63851588,2732.4,2732.0,0.52403731]
[1645282819580,0.63851588,2732.5,2732.0,0.52403731]
[1645282819777,0.63851588,2732.2,2732.1,0.00227759]
[1645282819978,1.27703176,2732.2,2732.0,0.52175972]
[1645282820583,1.27703176,2732.2,2731.9,0.00227759]
[1645282820781,1.27703176,2732.2,2731.7,2.61707759]
[1645282821579,1.27703176,2732.2,2731.8,0.62910294]
[1645282821580,0.11387566,2732.0,2731.8,0.62910294]
[1645282821780,0.11387566,2732.0,2731.8,0.63138053]
[1645282822286,1.27703176,2732.2,2731.8,0.63138053]
[1645282822526,1.27703176,2732.2,2731.8,0.54276722]
[1645282822722,1.27703176,2732.2,2731.8,0.00227759]
[1645282823125,0.11387566,2732.0,2731.8,0.00227759]
[1645282823324,1.27703176,2732.2,2731.7,2.4319]
[1645282823524,1.27703176,2732.2,2731.7,2.43417759]
[1645282824325,1.27703176,2732.2,2732.0,0.59214778]
[1645282824728,0.11387566,2732.1,2732.0,0.59214778]
[1645282825127,0.75239154,2732.1,2732.0,0.59214778]
[1645282825328,1.39090742,2732.1,2732.0,0.59214778]
[1645282827577,1.04090742,2732.1,2732.0,0.59214778]
[1645282830229,0.63851588,2732.1,2732.0,0.59214778]
[1645282830429,1.04090742,2732.1,2732.0,0.59214778]
[1645282830826,0.40239154,2732.1,2732.0,0.59214778]
[1645282831026,1.03961594,2732.1,2732.0,0.59214778]
[1645282831428,1.14565276,2732.1,2732.0,0.59214778]
[1645282831625,1.03961594,2732.1,2732.0,0.59214778]
[1645282839132,1.03961594,2732.1,2732.0,2.02605273]
[1645282839331,0.17313308,2732.6,2732.1,8.5]
[1645282839636,0.17313308,2732.6,2732.2,5.46093218]
[1645282839834,0.17313308,2732.6,2732.3,1.43393218]
[1645282840232,0.17313308,2732.6,2732.4,3.5]
[1645282840437,0.17313308,2732.6,2732.3,1.00116896]
[1645282840833,0.17313308,2732.6,2732.2,4.2099]
[1645282840834,0.17313308,2732.6,2732.2,0.7099]
[1645282841032,0.17313308,2732.6,2732.2,0.527]
[1645282842492,0.17313308,2732.6,2732.2,1.4421164]
[1645282843098,0.17313308,2732.6,2732.5,0.66877971]
[1645282843289,0.27541259,2732.6,2731.8,0.00227759]
[1645282843494,0.10227951,2732.5,2731.8,1.44275373]
[1645282844088,0.25912835,2732.6,2731.8,0.00227759]
[1645282844289,0.25912835,2732.6,2731.8,1.44277014]
[1645282844290,0.10075645,2732.5,2731.8,1.44277014]
[1645282844492,0.10075645,2732.5,2731.9,0.63324272]
[1645282844690,0.10075645,2732.5,2732.0,1.44049255]
[1645282846434,0.10075645,2732.5,2732.0,1.52660871]
[1645282846836,0.10075645,2732.5,2732.1,1.44049255]
[1645282851083,0.25912835,2732.6,2731.9,0.81614272]
[1645282851084,0.1012845,2732.4,2732.2,1.4484302]
[1645282851280,0.1012845,2732.3,2731.9,0.81614272]
[1645282851478,0.1012845,2732.5,2732.0,1.44843754]
[1645282851683,0.1012845,2732.4,2732.0,3.44224386]
[1645282851885,0.25912835,2732.6,2732.3,0.69252716]
[1645282851886,0.16563308,2732.6,2732.3,0.69252716]
[1645282852083,0.16563308,2732.6,2732.4,0.527]
[1645282852282,0.16563308,2732.6,2732.4,0.61311616]
[1645282852539,0.16563308,2732.6,2732.5,0.08611616]
[1645282852740,0.16563308,2732.6,2732.1,0.527]
[1645282853336,0.0510429,2732.5,2732.1,0.527]
[1645282854436,0.0510429,2732.5,2732.2,0.58564987]
[1645282854636,0.0510429,2732.5,2731.8,2.52278306]
[1645282854840,0.0510429,2732.5,2731.8,0.69252716]
[1645282855138,0.0510429,2732.5,2731.7,2.43417759]
[1645282855638,0.0510429,2732.5,2731.9,0.62229787]
[1645282856676,0.0510429,2732.5,2731.9,0.08611616]
[1645282857877,0.0510429,2732.5,2731.9,0.74459193]
[1645282859680,0.0510429,2732.5,2731.9,0.65847577]
[1645282863328,0.0510429,2732.5,2731.8,2.16336527]
[1645282863329,0.0510429,2732.5,2731.8,0.55559621]
[1645282863778,0.0510429,2732.5,2731.8,0.64171237]
[1645282864379,0.74045396,2732.5,2731.7,2.43417759]
[1645282864588,4.18941106,2732.4,2731.7,2.43417759]
[1645282864778,0.68941106,2732.4,2731.7,2.43417759]
[1645282865179,1.74045396,2732.5,2731.7,2.43417759]
[1645282865479,0.68941106,2732.4,2731.7,2.43417759]
[1645282865880,1.0510429,2732.5,2731.7,2.43417759]
[1645282865881,0.68941106,2732.3,2731.7,2.43417759]
[1645282866788,0.68941106,2732.3,2731.4,7.49]
[1645282866789,0.24114016,2731.6,2731.4,7.49]
[1645282866984,0.24114016,2731.6,2731.5,0.0022647]
[1645282867185,0.24114016,2731.6,2731.1,0.0022647]
[1645282867432,0.24114016,2731.6,2730.9,0.0022647]
[1645282868035,0.56858678,2731.6,2730.9,0.0022647]
[1645282868246,4.18941106,2731.5,2730.9,0.0022647]
[1645282868439,1.0,2731.4,2730.9,0.0022647]
[1645282869039,2.01488,2731.3,2730.9,0.0022647]
[1645282869238,1.42123625,2731.1,2730.4,0.00987449]
[1645282869839,1.42123625,2731.1,2730.3,0.0022647]
[1645282870040,1.42123625,2731.1,2729.4,3.79975432]
[1645282870041,1.42123625,2731.1,2730.1,0.0022647]
[1645282870239,1.42123625,2731.1,2729.9,0.69479186]
[1645282870440,4.92123625,2731.1,2730.0,0.69252716]
[1645282870640,4.92123625,2731.1,2730.1,0.0022647]
[1645282870843,1.0,2731.0,2729.9,0.69479186]
[1645282871042,1.0,2731.0,2730.0,0.00876471]
[1645282871279,0.91602,2730.9,2730.0,0.00876471]
[1645282871480,0.45408488,2730.6,2730.0,0.00876471]
[1645282871680,0.45408488,2730.6,2730.1,0.69252716]
[1645282871879,0.45408488,2730.6,2730.1,0.0022647]
[1645282872182,3.5,2730.9,2729.8,0.0022647]
[1645282872380,0.91616,2730.6,2729.9,0.00219129]
[1645282872582,0.91616,2730.6,2729.9,1.46554012]
[1645282872776,0.91616,2730.6,2730.0,0.0022647]
[1645282872981,0.91616,2730.6,2730.0,1.46561353]
[1645282873180,1.461718,2730.6,2730.1,0.0022647]
[1645282873380,1.91022523,2730.5,2730.1,0.0022647]
[1645282873583,1.91022523,2730.5,2728.9,8.6665]
[1645282873584,0.07779923,2730.4,2729.9,0.00219129]
[1645282873780,3.57779923,2730.4,2729.9,0.00219129]
[1645282873982,3.57779923,2730.4,2729.9,1.46561473]
[1645282873983,3.5,2730.4,2729.9,1.46561473]
[1645282874183,3.5,2730.4,2730.0,0.0022647]
[1645282874381,3.5,2730.4,2729.5,0.0022647]
[1645282874582,3.5,2730.4,2729.5,1.46566025]
[1645282874785,0.91625,2730.2,2729.6,0.0022647]
[1645282875033,0.91625,2730.2,2729.9,0.00221637]
[1645282875530,1.83245,2730.3,2729.9,0.00221637]
[1645282875729,1.83245,2730.3,2729.8,0.0022647]
[1645282875929,1.83245,2730.3,2729.9,0.00221637]
[1645282876731,3.5,2730.2,2729.9,0.00221637]
[1645282876930,3.5,2730.2,2729.5,0.0022647]